fUST/lending_fUST_20240227
["ID","MTS","AMOUNT","RATE_DAILY","PERIOD"]
[315394510,1709007043719,-1183.73057014,0.00020567,2]
[315394511,1709007043729,-1823.09535831,0.00020615,2]
[315394512,1709007043739,-787.79,0.00020666,2]
[315394513,1709007043749,-787.79,0.00020666,2]
[315394514,1709007043759,-88366.51004234,0.00020667,4]
[315394515,1709007043768,-5000.0,0.00020667,5]
[315394516,1709007043778,-13662.47262311,0.00020667,3]
[315394517,1709007043788,-5000.0,0.00020667,5]
[315394518,1709007043798,-50000.0,0.00020667,3]
[315394519,1709007043808,-50000.0,0.00020667,3]
[315394520,1709007043817,-50000.0,0.00020667,3]
[315394521,1709007043826,-50000.0,0.00020667,3]
[315394522,1709007043837,-50000.0,0.00020667,3]
[315394523,1709007043846,-50000.0,0.00020667,3]
[315394524,1709007043857,-58855.93244489,0.00020667,3]
[315394525,1709007043867,-151.0,0.00020667,2]
[315394526,1709007043877,-151.0,0.00020667,2]
[315394527,1709007043887,-151.0,0.00020667,2]
[315394528,1709007043898,-15273.97974541,0.00020667,4]
[315394529,1709007043908,-1000.0,0.00020684,5]
[315394530,1709007043918,-2278.16083477,0.00020685,2]
[315394531,1709007043929,-787.79,0.00020685,2]
[315394532,1709007043940,-500.0,0.00020685,2]
[315394533,1709007043951,-500.0,0.00020685,2]
[315394534,1709007043962,-500.0,0.00020685,2]
[315394535,1709007043973,-532.25221889,0.00020685,2]
[315394536,1709007043984,-500.0,0.00020685,2]
[315394537,1709007043994,-500.0,0.00020685,2]
[315394538,1709007044004,-519.34509243,0.00020685,2]
[315394539,1709007044014,-500.0,0.00020685,2]
[315394540,1709007044024,-251.30439726,0.00020685,2]
[315394541,1709007044033,-500.0,0.00020685,2]
[315394542,1709007044043,-220.80973155,0.00020685,2]
[315394543,1709007044053,-500.0,0.00020685,2]
[315394544,1709007044063,-500.0,0.00020685,2]
[315394545,1709007044071,-500.0,0.00020685,2]
[315394546,1709007044081,-500.0,0.00020685,2]
[315394547,1709007044090,-500.0,0.00020685,2]
[315394548,1709007044100,-500.0,0.00020685,2]
[315394549,1709007044110,-500.0,0.00020685,2]
[315394550,1709007044121,-500.0,0.00020685,2]
[315394551,1709007044130,-500.0,0.00020685,2]
[315394552,1709007044139,-401.04722973,0.00020686,2]
[315394553,1709007044149,-1000.0,0.00020686,5]
[315394554,1709007044159,-24185.24510169,0.00020686,2]
[315394555,1709007044396,-1001.67865485,0.00020686,2]
[315394556,1709007044409,-1843.52737132,0.00020686,2]
[315394557,1709007044422,-4467.33564496,0.00020686,2]
[315394558,1709007044433,-5976.62292968,0.00020686,2]
[315394559,1709007044442,-329.62033224,0.00020686,2]
[315394560,1709007044453,-2354.30396686,0.00020686,2]
[315394561,1709007044466,-6051.80205969,0.00020686,2]
[315394562,1709007044476,-725.63759099,0.00020686,2]
[315394563,1709007044487,-1000.0,0.00020686,5]
[315394564,1709007044498,-1000.0,0.00020686,5]
[315394565,1709007044508,-630.377174,0.00020686,2]
[315394566,1709007044518,-630.377174,0.00020686,2]
[315394567,1709007044528,-1823.09535831,0.0002071,2]
[315394568,1709007044538,-153.0,0.0002074,2]
[315394569,1709007044549,-500.0,0.00020762,2]
[315394570,1709007044559,-1823.09535831,0.00020805,2]
[315394571,1709007044571,-256.63,0.00020812,7]
[315394572,1709007044581,-174.45747952,0.00020819,2]
[315394573,1709007044591,-787.79,0.00020819,2]
[315394574,1709007044601,-787.79,0.0002082,2]
[315394575,1709007044611,-500.0,0.00020821,2]
[315394576,1709007044622,-929.34,0.00020821,2]
[315394577,1709007044632,-500.0,0.00020821,2]
[315394578,1709007044642,-2562.84,0.00020821,2]
[315394579,1709007044651,-560.87,0.00020821,2]
[315394580,1709007044662,-1011.12,0.00020821,2]
[315394581,1709007044675,-1613.02,0.00020821,2]
[315394582,1709007044686,-500.0,0.00020821,2]
[315394583,1709007044696,-1058.58,0.00020821,2]
[315394584,1709007044707,-500.0,0.00020821,2]
[315394585,1709007044718,-500.0,0.00020821,2]
[315394586,1709007044730,-500.0,0.00020821,2]
[315394587,1709007044740,-1614.26,0.00020821,2]
[315394588,1709007044751,-1344.21,0.00020821,2]
[315394589,1709007044762,-1041.51,0.00020821,2]
[315394590,1709007044773,-5896.97,0.00020821,2]
[315394591,1709007044886,-500.0,0.00020821,2]
[315394592,1709007044914,-2937.45,0.00020821,2]
[315394593,1709007044925,-500.0,0.00020821,2]
[315394595,1709007044937,-500.0,0.00020821,2]
[315394596,1709007044948,-755.4,0.00020821,2]
[315394597,1709007044959,-3335.36,0.00020821,2]
[315394598,1709007044969,-792.43,0.00020821,2]
[315394599,1709007044979,-745.32,0.00020821,2]
[315394600,1709007044992,-2491.47,0.00020821,2]
[315394601,1709007045002,-906.42,0.00020821,2]
[315394602,1709007045014,-1142.41,0.00020821,2]
[315394603,1709007045024,-685.8,0.00020821,2]
[315394604,1709007045035,-878.6831626,0.00020821,2]
[315394623,1709007045662,-500.0,0.00019178,2]
[315394625,1709007045673,-500.49030211,0.00019451,2]
[315394627,1709007045685,-500.0,0.00019999,2]
[315394629,1709007045696,-500.0,0.00019999,2]
[315394631,1709007045706,-633.29926322,0.00019999,2]
[315394634,1709007045717,-500.0,0.00019999,2]
[315394635,1709007045728,-500.0,0.00019999,2]
[315394638,1709007045738,-500.0,0.00019999,2]
[315394640,1709007045749,-500.0,0.00019999,2]
[315394641,1709007045759,-500.0,0.00019999,2]
[315394643,1709007045770,-500.0,0.00019999,2]
[315394645,1709007045781,-500.0,0.00019999,2]
[315394648,1709007045791,-500.0,0.00019999,2]
[315394650,1709007045802,-500.0,0.00019999,2]
[315394652,1709007045813,-500.0,0.00019999,2]
[315394653,1709007045824,-500.0,0.00019999,2]
[315394655,1709007045834,-500.0,0.00019999,2]
[315394656,1709007045845,-500.0,0.00019999,2]
[315394657,1709007045856,-500.0,0.00019999,2]
[315394658,1709007045866,-500.0,0.00019999,2]
[315394659,1709007045877,-500.0,0.00019999,2]
[315394660,1709007045887,-500.0,0.00019999,2]
[315394661,1709007045898,-500.0,0.00019999,2]
[315394662,1709007045908,-500.0,0.00019999,2]
[315394664,1709007045921,-269.30736703,0.00019999,2]
[315394665,1709007045932,-500.0,0.00019999,2]
[315394666,1709007045942,-500.0,0.00019999,2]
[315394667,1709007045952,-265.54447169,0.00019999,2]
[315394668,1709007045963,-215.786596,0.00019999,2]
[315394669,1709007045972,-500.0,0.00019999,2]
[315394670,1709007045983,-500.0,0.00019999,2]
[315394671,1709007045993,-500.0,0.00019999,2]
[315394672,1709007046003,-500.0,0.00019999,2]
[315394674,1709007046013,-500.0,0.00019999,2]
[315394676,1709007046023,-500.0,0.00019999,2]
[315394677,1709007046033,-500.0,0.00019999,2]
[315394679,1709007046043,-500.0,0.00019999,2]
[315394681,1709007046053,-500.0,0.00019999,2]
[315394683,1709007046063,-500.0,0.00019999,2]
[315394685,1709007046073,-500.0,0.00019999,2]
[315394687,1709007046083,-500.0,0.00019999,2]
[315394689,1709007046093,-500.0,0.00019999,2]
[315394691,1709007046103,-500.0,0.00019999,2]
[315394693,1709007046113,-500.0,0.00019999,2]
[315394696,1709007046134,-500.0,0.00019999,2]
[315394698,1709007046144,-500.0,0.00019999,2]
[315394700,1709007046153,-500.0,0.00019999,2]
[315394702,1709007046164,-500.0,0.00019999,2]
[315394706,1709007046174,-500.0,0.00019999,2]
[315394709,1709007046184,-500.0,0.00019999,2]
[315394710,1709007046194,-500.0,0.00019999,2]
[315394713,1709007046205,-500.0,0.00019999,2]
[315394716,1709007046216,-500.0,0.00019999,2]
[315394719,1709007046226,-500.0,0.00019999,2]
[315394721,1709007046235,-500.0,0.00019999,2]
[315394723,1709007046244,-500.0,0.00019999,2]
[315394726,1709007046254,-500.0,0.00019999,2]
[315394729,1709007046263,-500.0,0.00019999,2]
[315394730,1709007046273,-500.0,0.00019999,2]
[315394732,1709007046282,-500.0,0.00019999,2]
[315394734,1709007046292,-500.0,0.00019999,2]
[315394737,1709007046302,-153.6949043,0.00020466,2]
[315394739,1709007046311,-15562.59,0.00020811,3]
[315394742,1709007046321,-423.0168374,0.00020821,2]
[315394745,1709007046331,-574.55,0.00020821,2]
[315394746,1709007046340,-560.94,0.00020821,2]
[315394748,1709007046350,-1335.6,0.00020821,2]
[315394750,1709007046360,-2370.09,0.00020821,2]
[315394751,1709007046368,-4835.09025825,0.00020821,2]
[315394752,1709007046382,-1034.71994861,0.00020821,2]
[315394753,1709007046394,-2985.90979314,0.00020821,2]
[315394754,1709007046403,-15745.35,0.00020821,2]
[315394755,1709007046412,-715.87,0.00020821,2]
[315394756,1709007046421,-2166.39,0.00020821,2]
[315394757,1709007046430,-3320.09,0.00020821,2]
[315394758,1709007046439,-1795.49,0.00020821,2]
[315394759,1709007046448,-500.0,0.00020821,2]
[315394760,1709007046457,-1823.59,0.00020821,2]
[315394761,1709007046466,-2083.81,0.00020821,2]
[315394762,1709007046474,-500.0,0.00020821,2]
[315394763,1709007046484,-615.15729319,0.00020821,2]
[315394764,1709007046493,-500.0,0.00020821,2]
[315394765,1709007046502,-509.32,0.00020821,2]
[315394766,1709007046511,-16501.42,0.00020821,2]
[315394767,1709007046520,-1705.22,0.00020821,2]
[315394768,1709007046530,-1064.93,0.00020821,2]
[315394769,1709007046539,-500.0,0.00020859,2]
[315394770,1709007046549,-234.4324,0.00020895,2]
[315394771,1709007046558,-1823.09535831,0.000209,2]
[315394772,1709007046567,-500.0,0.00020955,2]
[315394773,1709007046577,-152.0,0.00020963,2]
[315394774,1709007046587,-166.666666,0.00020973,2]
[315394775,1709007046597,-214.04629134,0.00020998,2]
[315394776,1709007046607,-290.30746584,0.00020998,2]
[315394777,1709007046616,-787.79,0.00020998,2]
[315394778,1709007046625,-614.58354959,0.00020999,2]
[315394779,1709007046635,-787.79,0.00020999,2]
[315394780,1709007046644,-787.79,0.00020999,2]
[315394781,1709007046653,-787.79,0.00020999,2]
[315394782,1709007046663,-787.79,0.00020999,2]
[315394783,1709007046672,-787.79,0.00020999,2]
[315394784,1709007046681,-787.92,0.00020999,2]
[315394785,1709007046692,-21026.09626116,0.00021,2]
[315394786,1709007046705,-5628.11857464,0.00021,2]
[315394787,1709007046717,-680.49725004,0.00021,2]
[315394791,1709007048518,-2241.36847673,0.00021,2]
[315394792,1709007048530,-3112.82508354,0.00021,2]
[315394793,1709007123533,-793.16671725,0.000189,2]
[315394794,1709007123557,-4577.88,0.00019178,2]
[315394795,1709007123580,-2339.71,0.00019178,2]
[315394796,1709007123604,-561.3,0.00019178,2]
[315394797,1709007123626,-527.93,0.00019178,2]
[315394798,1709007123649,-347.18042852,0.00019178,2]
[315394799,1709007123677,-500.0,0.00019178,2]
[315394800,1709007123700,-642.05,0.00019178,2]
[315394801,1709007123721,-500.0,0.00019178,2]
[315394802,1709007123742,-530.67,0.00019178,2]
[315394803,1709007123763,-500.0,0.00019178,2]
[315394804,1709007123784,-500.0,0.00019178,2]
[315394805,1709007123806,-500.0,0.00019178,2]
[315394806,1709007123828,-2501.52,0.00019178,2]
[315394807,1709007123851,-1868.6,0.00019178,2]
[315394808,1709007123872,-166.666666,0.00019178,2]
[315394809,1709007133797,287.83353781,0.00019178,2]
[315394810,1709007135159,946.05,0.00019178,2]
[315394811,1709007149084,11152.96,0.00019178,2]
[315394812,1709007171326,976.28,0.00019178,2]
[315394813,1709007183343,500.0,0.00019178,2]
[315394814,1709007185383,507.08,0.00019178,2]
[315394815,1709007211096,1271.81,0.00019178,2]
[315394816,1709007211406,500.0,0.00019178,2]
[315394817,1709007213760,1534.52,0.00019178,2]
[315394821,1709007214836,1291.71,0.00019178,2]
[315394823,1709007240453,6641.79,0.00019178,2]
[315394825,1709007263019,2490.07,0.00019178,2]
[315394827,1709007288754,500.0,0.00019178,2]
[315394828,1709007290417,4043.22265042,0.00019178,2]
[315394909,1709008232412,-677.63039437,0.0001822,2]
[315394911,1709008232423,-8822.35970866,0.00018221,2]
[315394918,1709008232485,-11204.80741619,0.00018221,2]
[315394976,1709008241989,-4872.83287515,0.00018221,2]
[315394977,1709008242000,-160.4829556,0.00018543,2]
[315394978,1709008242010,-578.7778115,0.000189,2]
[315394979,1709008242020,-1213.57750513,0.00019177,2]
[315394980,1709008242032,-1213.57750513,0.00019177,2]
[315394981,1709008242042,-500.0,0.00019178,2]
[315394982,1709008242054,-411.54897742,0.00019178,2]
[315394983,1709008242073,-578.67,0.00019178,2]
[315394984,1709008242084,-68.97702494,0.00019178,2]
[315395009,1709008245292,-431.02297506,0.00019178,2]
[315395013,1709008245304,-500.0,0.00019178,2]
[315395022,1709008245316,-500.0,0.00019178,2]
[315395027,1709008245328,-500.0,0.00019178,2]
[315395031,1709008245339,-505.54703961,0.00019178,2]
[315395036,1709008245348,-285.00663299,0.00019178,2]
[315395046,1709008245380,-214.99336701,0.00019178,2]
[315395049,1709008245391,-500.0,0.00019178,2]
[315395051,1709008245401,-500.0,0.00019178,2]
[315395053,1709008245411,-500.74835201,0.00019178,2]
[315395056,1709008245422,-500.0,0.00019178,2]
[315395060,1709008245433,-500.0,0.00019178,2]
[315395063,1709008245445,-2704.42,0.00019178,2]
[315395066,1709008245457,-1072.92,0.00019178,2]
[315395068,1709008245467,-500.0,0.00019178,2]
[315395070,1709008245482,-1705.51,0.00019178,2]
[315395072,1709008245493,-500.0,0.00019178,2]
[315395073,1709008245503,-500.0,0.00019178,2]
[315395074,1709008245514,-1551.66,0.00019178,2]
[315395077,1709008245524,-500.0,0.00019178,2]
[315395080,1709008245534,-500.0,0.00019178,2]
[315395083,1709008245544,-2159.82193552,0.00019178,2]
[315395086,1709008245555,-500.0,0.00019178,2]
[315395090,1709008245566,-500.86552404,0.00019178,2]
[315395093,1709008245576,-212.44196053,0.00019178,2]
[315395095,1709008245587,-1346.46,0.00019178,2]
[315395097,1709008245597,-186.52193243,0.00019178,2]
[315395099,1709008245607,-500.0,0.00019178,2]
[315395101,1709008245617,-14957.84,0.00019178,2]
[315395103,1709008245628,-1048.92,0.00019178,2]
[315395105,1709008245639,-503.15205362,0.00019178,2]
[315395107,1709008245650,-500.0,0.00019178,2]
[315395110,1709008245661,-500.0,0.00019178,2]
[315395112,1709008245672,-501.9561912,0.00019178,2]
[315395114,1709008245684,-500.0,0.00019178,2]
[315395116,1709008245694,-500.0,0.00019178,2]
[315395118,1709008245705,-500.0,0.00019178,2]
[315395120,1709008245715,-661.21,0.00019178,2]
[315395123,1709008245726,-586.20253158,0.00019178,2]
[315395125,1709008245736,-703.01,0.00019178,2]
[315395126,1709008245747,-500.99882083,0.00019178,2]
[315395127,1709008245758,-13968.53,0.00019178,2]
[315395128,1709008245768,-500.0,0.00019178,2]
[315395129,1709008245778,-804.13,0.00019178,2]
[315395130,1709008245789,-500.90735407,0.00019178,2]
[315395132,1709008245799,-976.18,0.00019178,2]
[315395133,1709008245810,-501.19562815,0.00019178,2]
[315395134,1709008245820,-505.83,0.00019178,2]
[315395135,1709008245830,-502.27288732,0.00019178,2]
[315395137,1709008245840,-723.92,0.00019178,2]
[315395138,1709008245851,-5615.67,0.00019178,2]
[315395140,1709008245861,-2854.19,0.00019178,2]
[315395142,1709008245871,-500.0,0.00019178,2]
[315395144,1709008245882,-500.0,0.00019178,2]
[315395145,1709008245892,-500.77783376,0.00019178,2]
[315395146,1709008245903,-500.0,0.00019178,2]
[315395147,1709008245913,-1184.88,0.00019178,2]
[315395149,1709008245924,-500.0,0.00019178,2]
[315395150,1709008245934,-503.73065665,0.00019178,2]
[315395152,1709008245945,-500.0,0.00019178,2]
[315395155,1709008245955,-1617.81,0.00019178,2]
[315395158,1709008245965,-3092.15,0.00019178,2]
[315395161,1709008245976,-537.57,0.00019178,2]
[315395164,1709008245986,-2309.8,0.00019178,2]
[315395168,1709008245997,-664.92,0.00019178,2]
[315395171,1709008246008,-581.55260075,0.00019178,2]
[315395173,1709008246018,-501.29042956,0.00019178,2]
[315395176,1709008246029,-1921.92,0.00019178,2]
[315395177,1709008246039,-502.24533247,0.00019178,2]
[315395178,1709008246050,-1592.87,0.00019178,2]
[315395179,1709008246061,-500.0,0.00019178,2]
[315395181,1709008246071,-544.99348939,0.00019178,2]
[315395184,1709008246082,-504.08156979,0.00019178,2]
[315395185,1709008246228,-500.0,0.00019178,2]
[315395186,1709008246239,-1158.76,0.00019178,2]
[315395187,1709008246248,-237.22654352,0.00019178,2]
[315395188,1709008246257,-500.0,0.00019178,2]
[315395189,1709008246267,-2435.25,0.00019178,2]
[315395190,1709008246276,-500.2963031,0.00019178,2]
[315395192,1709008246285,-1634.17,0.00019178,2]
[315395194,1709008246295,-500.0,0.00019178,2]
[315395196,1709008246303,-164.972699,0.00019178,2]
[315395198,1709008246312,-166.666666,0.00019178,2]
[315395199,1709008246321,-1242.91709866,0.00019352,2]
[315395200,1709008246330,-500.0,0.0001945,2]
[315395201,1709008246339,-500.0,0.0001945,2]
[315395202,1709008246348,-500.0,0.00019451,2]
[315395203,1709008246357,-570.5920491,0.00019451,2]
[315395204,1709008246366,-379.90449438,0.00019451,2]
[315395205,1709008246375,-501.83788764,0.00019451,2]
[315395206,1709008246384,-500.0,0.00019451,2]
[315395207,1709008246393,-500.0,0.00019451,2]
[315395208,1709008246402,-500.0,0.00019451,2]
[315395209,1709008246411,-501.378692,0.00019451,2]
[315395210,1709008246421,-503.26423189,0.00019451,2]
[315395211,1709008246430,-379.01528578,0.00019451,2]
[315395212,1709008246440,-503.49687487,0.00019451,2]
[315395213,1709008246449,-971.2,0.00019451,2]
[315395214,1709008246459,-500.0,0.00019451,2]
[315395215,1709008246468,-500.0,0.00019451,2]
[315395216,1709008246480,-500.0,0.00019451,2]
[315395217,1709008246489,-476.05935812,0.00019451,2]
[315395218,1709008246497,-517.31375723,0.00019451,2]
[315395219,1709008246506,-502.97392599,0.00019451,2]
[315395220,1709008246518,-500.0,0.00019451,2]
[315395221,1709008246527,-500.0,0.00019451,2]
[315395222,1709008246537,-500.0,0.00019451,2]
[315395223,1709008246546,-500.0,0.00019451,2]
[315395224,1709008246555,-500.0,0.00019451,2]
[315395225,1709008246565,-500.0,0.00019451,2]
[315395226,1709008246574,-500.0,0.00019451,2]
[315395227,1709008246583,-500.0,0.00019451,2]
[315395228,1709008246592,-500.0,0.00019451,2]
[315395229,1709008246601,-500.0,0.00019451,2]
[315395230,1709008246611,-500.0,0.00019451,2]
[315395231,1709008246620,-494.85355284,0.00019451,2]
[315395232,1709008246628,-500.0,0.00019451,2]
[315395233,1709008246637,-500.0,0.00019451,2]
[315395234,1709008246646,-500.0,0.00019451,2]
[315395235,1709008246655,-500.0,0.00019451,2]
[315395236,1709008246664,-230.19847541,0.00019451,2]
[315395237,1709008246673,-502.01239296,0.00019451,2]
[315395238,1709008246682,-500.0,0.00019451,2]
[315395239,1709008246691,-500.0,0.00019451,2]
[315395240,1709008246700,-500.0,0.00019451,2]
[315395241,1709008246710,-500.0,0.00019451,2]
[315395242,1709008246719,-500.0,0.00019451,2]
[315395243,1709008246729,-500.0,0.00019451,2]
[315395244,1709008246738,-500.0,0.00019451,2]
[315395245,1709008246746,-500.0,0.00019451,2]
[315395246,1709008246755,-500.0,0.00019451,2]
[315395247,1709008246765,-500.0,0.00019451,2]
[315395248,1709008246773,-500.0,0.00019451,2]
[315395249,1709008246782,-501.01152787,0.00019451,2]
[315395250,1709008246792,-501.59626251,0.00019451,2]
[315395251,1709008246801,-505.22836181,0.00019451,2]
[315395252,1709008246810,-500.0,0.00019451,2]
[315395253,1709008246819,-500.0,0.00019451,2]
[315395254,1709008246828,-628.65,0.00019451,2]
[315395255,1709008246838,-500.0,0.00019451,2]
[315395256,1709008246847,-500.0,0.00019451,2]
[315395257,1709008246856,-500.0,0.00019451,2]
[315395258,1709008246866,-500.0,0.00019451,2]
[315395259,1709008246875,-1047.21,0.00019451,2]
[315395260,1709008246884,-500.0,0.00019451,2]
[315395261,1709008246893,-500.0,0.00019451,2]
[315395262,1709008246903,-522.6772101,0.00019451,2]
[315395263,1709008246913,-500.0,0.00019451,2]
[315395264,1709008246922,-500.0,0.00019451,2]
[315395265,1709008246932,-500.0,0.00019451,2]
[315395266,1709008246940,-500.46925039,0.00019451,2]
[315395267,1709008246950,-500.0,0.00019451,2]
[315395268,1709008246959,-500.0,0.00019451,2]
[315395269,1709008246968,-500.0,0.00019451,2]
[315395270,1709008246977,-500.0,0.00019451,2]
[315395271,1709008246987,-8209.99,0.00019451,2]
[315395272,1709008246996,-500.0,0.00019451,2]
[315395273,1709008247006,-3078.0,0.00019451,2]
[315395274,1709008247015,-518.08991757,0.00019451,2]
[315395275,1709008247024,-550.88,0.00019451,2]
[315395276,1709008247034,-1996.98,0.00019451,2]
[315395277,1709008247043,-500.0,0.00019451,2]
[315395278,1709008247052,-501.13635766,0.00019451,2]
[315395279,1709008247062,-246.52424178,0.00019451,2]
[315395280,1709008247072,-500.0,0.00019451,2]
[315395281,1709008247081,-500.0,0.00019451,2]
[315395282,1709008247090,-501.62472493,0.00019451,2]
[315395283,1709008247099,-500.0,0.00019451,2]
[315395284,1709008247121,-582.50913426,0.00019451,2]
[315395285,1709008247131,-503.3806749,0.00019451,2]
[315395286,1709008247140,-500.0,0.00019451,2]
[315395287,1709008247150,-500.0,0.00019451,2]
[315395288,1709008247160,-1059.81,0.00019451,2]
[315395289,1709008247170,-500.0,0.00019451,2]
[315395290,1709008247179,-500.0,0.00019451,2]
[315395291,1709008247191,-500.0,0.00019451,2]
[315395292,1709008247200,-578.67,0.00019452,2]
[315395293,1709008247211,-500.0,0.00019452,2]
[315395294,1709008247221,-262.021544,0.00019452,2]
[315395295,1709008247231,-501.00756366,0.00019452,2]
[315395296,1709008247241,-500.0,0.00019452,2]
[315395297,1709008247251,-2704.42,0.00019452,2]
[315395298,1709008247260,-1072.92,0.00019452,2]
[315395299,1709008247271,-1705.51,0.00019452,2]
[315395300,1709008247281,-500.0,0.00019452,2]
[315395301,1709008247292,-500.0,0.00019452,2]
[315395302,1709008247302,-1551.66,0.00019452,2]
[315395303,1709008247312,-500.0,0.00019452,2]
[315395304,1709008247321,-503.46406997,0.00019452,2]
[315395305,1709008247331,-500.0,0.00019452,2]
[315395306,1709008247342,-1346.46,0.00019452,2]
[315395307,1709008247352,-500.0,0.00019452,2]
[315395308,1709008247362,-14957.84,0.00019452,2]
[315395309,1709008247371,-1048.92,0.00019452,2]
[315395310,1709008247381,-500.0,0.00019452,2]
[315395311,1709008247390,-500.0,0.00019452,2]
[315395312,1709008247400,-500.0,0.00019452,2]
[315395313,1709008247409,-661.21,0.00019452,2]
[315395314,1709008247419,-703.01,0.00019452,2]
[315395315,1709008247429,-13968.53,0.00019452,2]
[315395316,1709008247440,-500.0,0.00019452,2]
[315395317,1709008247449,-804.13,0.00019452,2]
[315395318,1709008247459,-976.18,0.00019452,2]
[315395319,1709008247468,-505.83,0.00019452,2]
[315395320,1709008247482,-723.92,0.00019452,2]
[315395321,1709008247491,-5615.67,0.00019452,2]
[315395322,1709008247500,-500.0,0.00019452,2]
[315395323,1709008247510,-2854.19,0.00019452,2]
[315395324,1709008247521,-611.56698539,0.00019452,2]
[315395325,1709008247532,-1184.88,0.00019452,2]
[315395326,1709008247543,-500.0,0.00019452,2]
[315395327,1709008247552,-1617.81,0.00019452,2]
[315395328,1709008247561,-3092.15,0.00019452,2]
[315395329,1709008247570,-537.57,0.00019452,2]
[315395330,1709008247579,-2309.8,0.00019452,2]
[315395331,1709008247590,-664.92,0.00019452,2]
[315395332,1709008247599,-1921.92,0.00019452,2]
[315395333,1709008247609,-1592.87,0.00019452,2]
[315395334,1709008247619,-500.0,0.00019452,2]
[315395335,1709008247629,-500.0,0.00019452,2]
[315395336,1709008247638,-1158.76,0.00019452,2]
[315395337,1709008247647,-502.32182453,0.00019452,2]
[315395338,1709008247656,-2435.25,0.00019452,2]
[315395339,1709008247666,-1634.17,0.00019452,2]
[315395340,1709008247675,-500.0,0.00019452,2]
[315395341,1709008247684,-166.666666,0.00019627,2]
[315395342,1709008247694,-1242.91709865,0.00019661,2]
[315395343,1709008247705,-500.0,0.00019715,2]
[315395344,1709008247714,-500.0,0.00019724,2]
[315395345,1709008247723,-500.0,0.00019725,2]
[315395346,1709008247733,-500.0,0.00019725,2]
[315395347,1709008247743,-500.0,0.00019725,2]
[315395348,1709008247752,-971.2,0.00019725,2]
[315395349,1709008247761,-500.0,0.00019725,2]
[315395350,1709008247771,-500.0,0.00019725,2]
[315395351,1709008247780,-502.73428054,0.00019725,2]
[315395352,1709008247790,-500.0,0.00019725,2]
[315395353,1709008247799,-500.0,0.00019725,2]
[315395354,1709008247809,-500.0,0.00019725,2]
[315395355,1709008247819,-500.0,0.00019725,2]
[315395356,1709008247828,-500.0,0.00019725,2]
[315395357,1709008247838,-500.0,0.00019725,2]
[315395358,1709008247847,-500.0,0.00019725,2]
[315395359,1709008247857,-500.0,0.00019725,2]
[315395360,1709008247867,-500.0,0.00019725,2]
[315395361,1709008247876,-500.0,0.00019725,2]
[315395362,1709008247886,-500.0,0.00019725,2]
[315395363,1709008247895,-500.0,0.00019725,2]
[315395364,1709008247905,-500.0,0.00019725,2]
[315395365,1709008247914,-500.0,0.00019725,2]
[315395366,1709008247924,-177.39927478,0.00019725,2]
[315395367,1709008247934,-500.0,0.00019725,2]
[315395368,1709008247944,-500.0,0.00019725,2]
[315395369,1709008247955,-500.0,0.00019725,2]
[315395370,1709008247964,-173.08101295,0.00019725,2]
[315395371,1709008247974,-500.0,0.00019725,2]
[315395372,1709008247983,-500.0,0.00019725,2]